[Event "Titled Tuesday Blitz June 1 2021"]
[White "Annaberdiyev, Babageldi"]
[Black "Visakh N R"]
[WhiteFideId "14000385"]
[BlackFideId "25012223"]
[WhiteElo "2332"]
[BlackElo "2428"]
[Result "0-1"]
[Round "06"]
[TimeControl "180+1"]
[Date "2021.06.01"]
[WhiteClock "0:00:44"]
[BlackClock "0:00:37"]

1. e4 {[%clk 0:03:00]}  c5 {[%clk 0:02:59]} 2. Nf3 {[%clk 0:03:00]}  Nc6 {[%clk 0:03:00]} 3. d3 {[%clk 0:03:01]}  d6 {[%clk 0:02:58]} 4. Nbd2 {[%clk 0:03:01]}  g6 {[%clk 0:02:58]} 5. g3 {[%clk 0:03:02]}  Bg7 {[%clk 0:02:59]} 6. h4 {[%clk 0:03:03]}  h6 {[%clk 0:02:58]} 7. Bg2 {[%clk 0:03:03]}  e6 {[%clk 0:02:58]} 8. O-O {[%clk 0:03:03]}  Nge7 {[%clk 0:02:58]} 9. Re1 {[%clk 0:03:03]}  O-O {[%clk 0:02:58]} 10. c3 {[%clk 0:03:03]}  b5 {[%clk 0:02:58]} 11. Nf1 {[%clk 0:03:04]}  b4 {[%clk 0:02:58]} 12. d4 {[%clk 0:03:04]}  bxc3 {[%clk 0:02:58]} 13. bxc3 {[%clk 0:03:05]}  cxd4 {[%clk 0:02:58]} 14. cxd4 {[%clk 0:03:06]}  Rb8 {[%clk 0:02:58]} 15. Be3 {[%clk 0:02:54]}  Ba6 {[%clk 0:02:56]} 16. Qd2 {[%clk 0:02:53]}  Qa5 {[%clk 0:02:50]} 17. Bxh6 {[%clk 0:02:51]}  Qxd2 {[%clk 0:02:50]} 18. Bxd2 {[%clk 0:02:50]}  Nxd4 {[%clk 0:02:50]} 19. Nxd4 {[%clk 0:02:45]}  Bxd4 {[%clk 0:02:51]} 20. Rad1 {[%clk 0:02:44]}  e5 {[%clk 0:02:30]} 21. Be3 {[%clk 0:02:39]}  Nc6 {[%clk 0:02:29]} 22. Bxd4 {[%clk 0:02:37]}  Nxd4 {[%clk 0:02:29]} 23. Ne3 {[%clk 0:02:38]}  Rb2 {[%clk 0:02:27]} 24. Nd5 {[%clk 0:02:32]}  Kg7 {[%clk 0:02:23]} 25. Rb1 {[%clk 0:02:24]}  Rfb8 {[%clk 0:02:18]} 26. Rxb2 {[%clk 0:02:19]}  Rxb2 {[%clk 0:02:19]} 27. a4 {[%clk 0:02:15]}  Bc4 {[%clk 0:02:12]} 28. Ne3 {[%clk 0:02:10]}  Bb3 {[%clk 0:02:06]} 29. Ra1 {[%clk 0:02:09]}  a5 {[%clk 0:02:02]} 30. Bf1 {[%clk 0:02:06]}  Nc2 {[%clk 0:01:37]} 31. Nxc2 {[%clk 0:01:53]}  Bxc2 {[%clk 0:01:38]} 32. f3 {[%clk 0:01:49]}  f5 {[%clk 0:01:35]} 33. exf5 {[%clk 0:01:48]}  gxf5 {[%clk 0:01:36]} 34. Bb5 {[%clk 0:01:47]}  d5 {[%clk 0:01:35]} 35. Re1 {[%clk 0:01:45]}  Kf6 {[%clk 0:01:34]} 36. g4 {[%clk 0:01:45]}  fxg4 {[%clk 0:01:26]} 37. fxg4 {[%clk 0:01:46]}  d4 {[%clk 0:01:25]} 38. g5+ {[%clk 0:01:42]}  Ke6 {[%clk 0:01:25]} 39. h5 {[%clk 0:01:40]}  d3 {[%clk 0:01:24]} 40. g6 {[%clk 0:01:02]}  Rxb5 {[%clk 0:00:42]} 41. axb5 {[%clk 0:00:54]}  d2 {[%clk 0:00:42]} 42. Rf1 {[%clk 0:00:49]}  d1=Q {[%clk 0:00:42]} 43. Rxd1 {[%clk 0:00:49]}  Bxd1 {[%clk 0:00:43]} 44. h6 {[%clk 0:00:49]}  Kf6 {[%clk 0:00:40]} 45. g7 {[%clk 0:00:43]}  Kf7 {[%clk 0:00:40]} 46. b6 {[%clk 0:00:43]}  Bf3 {[%clk 0:00:38]} 47. Kf2 {[%clk 0:00:43]}  Bb7 {[%clk 0:00:37]} 48. Ke3 {[%clk 0:00:44]} 0-1


[Site "https://www.chess.com"]

[Event "Titled Tuesday Blitz June 1 2021"]
[White "Demidov, Mikhail"]
[Black "Supi, Luis Paulo"]
[WhiteFideId "4197143"]
[BlackFideId "2106388"]
[WhiteElo "2583"]
[BlackElo "2369"]
[Result "0-1"]
[Round "06"]
[TimeControl "180+1"]
[Date "2021.06.01"]
[WhiteClock "0:00:10"]
[BlackClock "0:00:03"]

1. Nf3 {[%clk 0:03:00]}  Nf6 {[%clk 0:02:59]} 2. g3 {[%clk 0:02:59]}  g6 {[%clk 0:02:59]} 3. b3 {[%clk 0:03:00]}  Bg7 {[%clk 0:03:00]} 4. Bb2 {[%clk 0:03:00]}  O-O {[%clk 0:02:57]} 5. Bg2 {[%clk 0:03:00]}  d6 {[%clk 0:02:57]} 6. d4 {[%clk 0:03:00]}  a5 {[%clk 0:02:56]} 7. O-O {[%clk 0:03:00]}  b6 {[%clk 0:02:52]} 8. c4 {[%clk 0:02:59]}  Bb7 {[%clk 0:02:53]} 9. d5 {[%clk 0:03:00]}  a4 {[%clk 0:02:50]} 10. Nd4 {[%clk 0:02:59]}  Qd7 {[%clk 0:02:38]} 11. Qc2 {[%clk 0:02:54]}  c6 {[%clk 0:02:34]} 12. e4 {[%clk 0:02:42]}  Rc8 {[%clk 0:02:31]} 13. Qe2 {[%clk 0:02:28]}  Re8 {[%clk 0:02:22]} 14. Rd1 {[%clk 0:02:23]}  Qc8 {[%clk 0:02:12]} 15. Qc2 {[%clk 0:02:12]}  h5 {[%clk 0:02:00]} 16. bxa4 {[%clk 0:02:06]}  cxd5 {[%clk 0:01:53]} 17. cxd5 {[%clk 0:02:06]}  Qxc2 {[%clk 0:01:45]} 18. Nxc2 {[%clk 0:02:06]}  Rc8 {[%clk 0:01:45]} 19. Nb4 {[%clk 0:01:53]}  Nxd5 {[%clk 0:01:37]} 20. Nxd5 {[%clk 0:01:51]}  Bxb2 {[%clk 0:01:37]} 21. Nxe7+ {[%clk 0:01:51]}  Kf8 {[%clk 0:01:31]} 22. Nxc8 {[%clk 0:01:52]}  Bxc8 {[%clk 0:01:31]} 23. Nd2 {[%clk 0:01:46]}  Bxa1 {[%clk 0:01:30]} 24. Rxa1 {[%clk 0:01:47]}  Rxa4 {[%clk 0:01:31]} 25. h4 {[%clk 0:01:31]}  Be6 {[%clk 0:01:29]} 26. a3 {[%clk 0:01:31]}  Nd7 {[%clk 0:01:29]} 27. Nb1 {[%clk 0:01:11]}  Rc4 {[%clk 0:01:25]} 28. Nd2 {[%clk 0:01:11]}  Rd4 {[%clk 0:01:16]} 29. Nf1 {[%clk 0:01:03]}  Ra4 {[%clk 0:00:56]} 30. Ne3 {[%clk 0:00:58]}  Ke7 {[%clk 0:00:57]} 31. Nc2 {[%clk 0:00:43]}  Rc4 {[%clk 0:00:51]} 32. Ne3 {[%clk 0:00:42]}  Rd4 {[%clk 0:00:47]} 33. a4 {[%clk 0:00:30]}  Nc5 {[%clk 0:00:44]} 34. a5 {[%clk 0:00:28]}  Nb3 {[%clk 0:00:39]} 35. Nc2 {[%clk 0:00:13]}  Rd2 {[%clk 0:00:34]} 36. a6 {[%clk 0:00:09]}  Bc8 {[%clk 0:00:06]} 37. a7 {[%clk 0:00:09]}  Bb7 {[%clk 0:00:06]} 38. Nb4 {[%clk 0:00:10]}  Nxa1 {[%clk 0:00:05]} 39. e5 {[%clk 0:00:10]}  d5 {[%clk 0:00:04]} 40. Bxd5 {[%clk 0:00:09]}  Rxd5 {[%clk 0:00:03]} 41. Nxd5+ {[%clk 0:00:10]}  Bxd5 {[%clk 0:00:03]} 0-1


[Site "https://www.chess.com"]

[Event "Titled Tuesday Blitz June 1 2021"]
[White "Fier, Alexandr"]
[Black "Andreikin, Dmitry"]
[WhiteFideId "2107139"]
[BlackFideId "4158814"]
[WhiteElo "2569"]
[BlackElo "2782"]
[Result "0-1"]
[Round "06"]
[TimeControl "180+1"]
[Date "2021.06.01"]
[WhiteClock "0:00:25"]
[BlackClock "0:00:14"]

1. d4 {[%clk 0:03:00]}  g6 {[%clk 0:03:00]} 2. e4 {[%clk 0:02:56]}  d6 {[%clk 0:02:59]} 3. Nc3 {[%clk 0:02:57]}  Bg7 {[%clk 0:02:58]} 4. Be3 {[%clk 0:02:57]}  a6 {[%clk 0:02:58]} 5. Qd2 {[%clk 0:02:55]}  b5 {[%clk 0:02:57]} 6. O-O-O {[%clk 0:02:47]}  Nd7 {[%clk 0:02:55]} 7. h4 {[%clk 0:02:45]}  Nb6 {[%clk 0:02:47]} 8. h5 {[%clk 0:02:41]}  b4 {[%clk 0:02:47]} 9. Nb1 {[%clk 0:02:40]}  a5 {[%clk 0:02:42]} 10. Bd3 {[%clk 0:02:29]}  Ba6 {[%clk 0:02:31]} 11. Bxa6 {[%clk 0:02:23]}  Rxa6 {[%clk 0:02:31]} 12. Qe2 {[%clk 0:02:22]}  Qa8 {[%clk 0:02:28]} 13. h6 {[%clk 0:02:16]}  Bf8 {[%clk 0:02:23]} 14. d5 {[%clk 0:02:15]}  Nf6 {[%clk 0:02:10]} 15. Bd4 {[%clk 0:02:14]}  Nbd7 {[%clk 0:02:06]} 16. g4 {[%clk 0:02:10]}  c5 {[%clk 0:01:51]} 17. dxc6 {[%clk 0:02:06]}  Rxc6 {[%clk 0:01:51]} 18. g5 {[%clk 0:02:03]}  e5 {[%clk 0:01:51]} 19. gxf6 {[%clk 0:01:40]}  exd4 {[%clk 0:01:50]} 20. Nf3 {[%clk 0:01:41]}  Rc5 {[%clk 0:01:32]} 21. Nxd4 {[%clk 0:01:12]}  Nxf6 {[%clk 0:01:32]} 22. Nd2 {[%clk 0:01:10]}  Nh5 {[%clk 0:01:04]} 23. N2b3 {[%clk 0:01:07]}  Bxh6+ {[%clk 0:01:02]} 24. Kb1 {[%clk 0:01:07]}  Re5 {[%clk 0:01:02]} 25. Nf3 {[%clk 0:01:04]}  Qxe4 {[%clk 0:00:52]} 26. Qa6 {[%clk 0:01:01]}  O-O {[%clk 0:00:38]} 27. Nxe5 {[%clk 0:00:59]}  dxe5 {[%clk 0:00:39]} 28. Qxa5 {[%clk 0:00:58]}  Bf4 {[%clk 0:00:29]} 29. Nc5 {[%clk 0:00:54]}  Qc4 {[%clk 0:00:21]} 30. b3 {[%clk 0:00:49]}  Qc3 {[%clk 0:00:22]} 31. Ne4 {[%clk 0:00:47]}  Qf3 {[%clk 0:00:20]} 32. Qxb4 {[%clk 0:00:43]}  Kg7 {[%clk 0:00:19]} 33. Nc5 {[%clk 0:00:41]}  Rc8 {[%clk 0:00:17]} 34. Nd3 {[%clk 0:00:34]}  Nf6 {[%clk 0:00:14]} 35. a4 {[%clk 0:00:32]}  Nd5 {[%clk 0:00:14]} 36. Qb5 {[%clk 0:00:28]}  Nc3+ {[%clk 0:00:14]} 37. Ka1 {[%clk 0:00:25]}  Nxb5 {[%clk 0:00:14]} 0-1


[Site "https://www.chess.com"]

[Event "Titled Tuesday Blitz June 1 2021"]
[White "Ghimpu, Samuel-Timotei"]
[Black "Nguyen, Ngoc Truong Son"]
[WhiteFideId "1238175"]
[BlackFideId "12401110"]
[WhiteElo "2026"]
[BlackElo "2596"]
[Result "1/2-1/2"]
[Round "06"]
[TimeControl "180+1"]
[Date "2021.06.01"]
[WhiteClock "0:00:06"]
[BlackClock "0:00:09"]

1. e4 {[%clk 0:03:00]}  c5 {[%clk 0:02:59]} 2. Nf3 {[%clk 0:02:59]}  Nc6 {[%clk 0:02:59]} 3. d4 {[%clk 0:03:00]}  cxd4 {[%clk 0:03:00]} 4. Nxd4 {[%clk 0:03:01]}  e6 {[%clk 0:03:00]} 5. Nc3 {[%clk 0:03:00]}  a6 {[%clk 0:03:01]} 6. Nxc6 {[%clk 0:03:00]}  bxc6 {[%clk 0:03:01]} 7. Bd3 {[%clk 0:03:00]}  d5 {[%clk 0:03:01]} 8. O-O {[%clk 0:03:01]}  Nf6 {[%clk 0:02:56]} 9. Qf3 {[%clk 0:03:01]}  Be7 {[%clk 0:02:44]} 10. Qg3 {[%clk 0:03:01]}  Nh5 {[%clk 0:02:27]} 11. Qg4 {[%clk 0:02:45]}  g6 {[%clk 0:02:24]} 12. e5 {[%clk 0:02:43]}  Qc7 {[%clk 0:02:11]} 13. f4 {[%clk 0:02:35]}  c5 {[%clk 0:02:03]} 14. b3 {[%clk 0:02:35]}  Bb7 {[%clk 0:01:54]} 15. Kh1 {[%clk 0:02:29]}  Ng7 {[%clk 0:01:52]} 16. Na4 {[%clk 0:02:25]}  h5 {[%clk 0:01:46]} 17. Qe2 {[%clk 0:02:22]}  Nf5 {[%clk 0:01:42]} 18. c4 {[%clk 0:02:22]}  h4 {[%clk 0:01:41]} 19. Kg1 {[%clk 0:02:15]}  Rd8 {[%clk 0:01:36]} 20. cxd5 {[%clk 0:02:04]}  Rxd5 {[%clk 0:01:36]} 21. Be4 {[%clk 0:02:00]}  Rd7 {[%clk 0:01:22]} 22. Bxb7 {[%clk 0:01:53]}  Qxb7 {[%clk 0:01:23]} 23. Be3 {[%clk 0:01:50]}  Qb5 {[%clk 0:01:15]} 24. Rfe1 {[%clk 0:01:34]}  c4 {[%clk 0:00:58]} 25. Qxc4 {[%clk 0:01:27]}  O-O {[%clk 0:00:55]} 26. Bf2 {[%clk 0:01:08]}  Qb7 {[%clk 0:00:51]} 27. Rad1 {[%clk 0:00:57]}  Rxd1 {[%clk 0:00:47]} 28. Rxd1 {[%clk 0:00:56]}  Rc8 {[%clk 0:00:46]} 29. Qe2 {[%clk 0:00:49]}  h3 {[%clk 0:00:41]} 30. gxh3 {[%clk 0:00:36]}  Kg7 {[%clk 0:00:34]} 31. Qd3 {[%clk 0:00:18]}  Rd8 {[%clk 0:00:31]} 32. Qe2 {[%clk 0:00:18]}  Rxd1+ {[%clk 0:00:30]} 33. Qxd1 {[%clk 0:00:19]}  Qe4 {[%clk 0:00:31]} 34. Qd2 {[%clk 0:00:17]}  Bh4 {[%clk 0:00:24]} 35. Nc3 {[%clk 0:00:17]}  Qf3 {[%clk 0:00:21]} 36. Bxh4 {[%clk 0:00:16]}  Nxh4 {[%clk 0:00:22]} 37. Qf2 {[%clk 0:00:16]}  Qxh3 {[%clk 0:00:20]} 38. Qg3 {[%clk 0:00:15]}  Nf3+ {[%clk 0:00:17]} 39. Kf2 {[%clk 0:00:15]}  Qxg3+ {[%clk 0:00:15]} 40. hxg3 {[%clk 0:00:16]}  Nd4 {[%clk 0:00:15]} 41. Ke3 {[%clk 0:00:13]}  Nf5+ {[%clk 0:00:14]} 42. Kf2 {[%clk 0:00:14]}  g5 {[%clk 0:00:13]} 43. b4 {[%clk 0:00:13]}  gxf4 {[%clk 0:00:13]} 44. gxf4 {[%clk 0:00:14]}  f6 {[%clk 0:00:13]} 45. a4 {[%clk 0:00:13]}  fxe5 {[%clk 0:00:13]} 46. fxe5 {[%clk 0:00:14]}  Nd4 {[%clk 0:00:14]} 47. b5 {[%clk 0:00:13]}  axb5 {[%clk 0:00:14]} 48. axb5 {[%clk 0:00:14]}  Kf7 {[%clk 0:00:14]} 49. Ke3 {[%clk 0:00:14]}  Nf5+ {[%clk 0:00:14]} 50. Ke4 {[%clk 0:00:14]}  Ke7 {[%clk 0:00:14]} 51. Na4 {[%clk 0:00:14]}  Ng3+ {[%clk 0:00:13]} 52. Kd4 {[%clk 0:00:14]}  Ne2+ {[%clk 0:00:12]} 53. Kc5 {[%clk 0:00:14]}  Kd7 {[%clk 0:00:12]} 54. Nb6+ {[%clk 0:00:14]}  Kc7 {[%clk 0:00:12]} 55. Nc4 {[%clk 0:00:15]}  Nf4 {[%clk 0:00:11]} 56. b6+ {[%clk 0:00:15]}  Kd7 {[%clk 0:00:11]} 57. Kb5 {[%clk 0:00:10]}  Nd3 {[%clk 0:00:10]} 58. Ka6 {[%clk 0:00:09]}  Nc5+ {[%clk 0:00:10]} 59. Ka7 {[%clk 0:00:10]}  Kc6 {[%clk 0:00:10]} 60. Ne3 {[%clk 0:00:05]}  Nb7 {[%clk 0:00:08]} 61. Ng4 {[%clk 0:00:05]}  Nc5 {[%clk 0:00:07]} 62. Nh6 {[%clk 0:00:05]}  Kd5 {[%clk 0:00:07]} 63. Nf7 {[%clk 0:00:06]}  Kc6 {[%clk 0:00:07]} 64. Nd8+ {[%clk 0:00:05]}  Kd5 {[%clk 0:00:08]} 65. Nf7 {[%clk 0:00:06]}  Kc6 {[%clk 0:00:08]} 66. Ng5 {[%clk 0:00:06]}  Kd5 {[%clk 0:00:08]} 67. Nf3 {[%clk 0:00:06]}  Ke4 {[%clk 0:00:08]} 68. Ng5+ {[%clk 0:00:05]}  Kxe5 {[%clk 0:00:08]} 69. Nxe6 {[%clk 0:00:05]}  Kxe6 {[%clk 0:00:09]} 70. b7 {[%clk 0:00:06]}  Nxb7 {[%clk 0:00:09]} 1/2-1/2


[Site "https://www.chess.com"]

[Event "Titled Tuesday Blitz June 1 2021"]
[White "Grigorov, Grigor"]
[Black "Kezin, Roman"]
[WhiteFideId "2907313"]
[BlackFideId "24124621"]
[WhiteElo "2510"]
[BlackElo "2574"]
[Result "1-0"]
[Round "06"]
[TimeControl "180+1"]
[Date "2021.06.01"]
[WhiteClock "0:00:05"]
[BlackClock "0:00:04"]

1. d4 {[%clk 0:03:00]}  d5 {[%clk 0:02:59]} 2. c4 {[%clk 0:03:00]}  e6 {[%clk 0:03:00]} 3. Nf3 {[%clk 0:03:00]}  Nf6 {[%clk 0:03:00]} 4. g3 {[%clk 0:03:00]}  dxc4 {[%clk 0:02:57]} 5. Bg2 {[%clk 0:03:00]}  Nc6 {[%clk 0:02:57]} 6. O-O {[%clk 0:02:58]}  Rb8 {[%clk 0:02:54]} 7. Bg5 {[%clk 0:02:56]}  Be7 {[%clk 0:02:46]} 8. e3 {[%clk 0:02:47]}  b5 {[%clk 0:02:45]} 9. b3 {[%clk 0:02:41]}  O-O {[%clk 0:02:29]} 10. bxc4 {[%clk 0:02:40]}  bxc4 {[%clk 0:02:29]} 11. Nfd2 {[%clk 0:02:29]}  Na5 {[%clk 0:02:20]} 12. Qc2 {[%clk 0:02:27]}  Ba6 {[%clk 0:02:05]} 13. Rc1 {[%clk 0:02:23]}  c5 {[%clk 0:01:52]} 14. dxc5 {[%clk 0:02:20]}  Qc7 {[%clk 0:01:29]} 15. Nc3 {[%clk 0:02:05]}  h6 {[%clk 0:01:28]} 16. Bxf6 {[%clk 0:02:01]}  gxf6 {[%clk 0:01:23]} 17. Qe4 {[%clk 0:01:44]}  f5 {[%clk 0:01:21]} 18. Qc2 {[%clk 0:01:22]}  Qxc5 {[%clk 0:01:21]} 19. Rab1 {[%clk 0:01:16]}  Qa3 {[%clk 0:01:15]} 20. Nf3 {[%clk 0:01:10]}  Bf6 {[%clk 0:01:13]} 21. Nd4 {[%clk 0:01:10]}  Rfc8 {[%clk 0:00:46]} 22. Ncb5 {[%clk 0:00:58]}  Qc5 {[%clk 0:00:45]} 23. Qa4 {[%clk 0:00:52]}  Bxb5 {[%clk 0:00:44]} 24. Nxb5 {[%clk 0:00:50]}  Nb3 {[%clk 0:00:24]} 25. Rxb3 {[%clk 0:00:26]}  cxb3 {[%clk 0:00:24]} 26. Rxc5 {[%clk 0:00:27]}  b2 {[%clk 0:00:21]} 27. Rxc8+ {[%clk 0:00:26]}  Rxc8 {[%clk 0:00:22]} 28. Na3 {[%clk 0:00:26]}  Rc3 {[%clk 0:00:20]} 29. Bf1 {[%clk 0:00:20]}  Rxa3 {[%clk 0:00:19]} 30. Qxa3 {[%clk 0:00:20]}  b1=Q {[%clk 0:00:19]} 31. Qxa7 {[%clk 0:00:20]}  Qb2 {[%clk 0:00:18]} 32. Qa6 {[%clk 0:00:18]}  Bc3 {[%clk 0:00:17]} 33. a4 {[%clk 0:00:18]}  Be1 {[%clk 0:00:13]} 34. Qe2 {[%clk 0:00:17]}  Qa1 {[%clk 0:00:11]} 35. Qc2 {[%clk 0:00:17]}  Kg7 {[%clk 0:00:10]} 36. Kg2 {[%clk 0:00:17]}  Bc3 {[%clk 0:00:10]} 37. Bb5 {[%clk 0:00:17]}  Be1 {[%clk 0:00:04]} 38. Be8 {[%clk 0:00:17]}  Qf6 {[%clk 0:00:05]} 39. Qc7 {[%clk 0:00:15]}  Kf8 {[%clk 0:00:03]} 40. Bc6 {[%clk 0:00:15]}  Qb2 {[%clk 0:00:01]} 41. Qf4 {[%clk 0:00:12]}  Kg7 {[%clk 0:00:02]} 42. Qd4+ {[%clk 0:00:11]}  Qxd4 {[%clk 0:00:01]} 43. exd4 {[%clk 0:00:11]}  Bc3 {[%clk 0:00:01]} 44. d5 {[%clk 0:00:11]}  exd5 {[%clk 0:00:02]} 45. Bxd5 {[%clk 0:00:12]}  f4 {[%clk 0:00:03]} 46. gxf4 {[%clk 0:00:09]}  f6 {[%clk 0:00:03]} 47. Be6 {[%clk 0:00:09]}  Kf8 {[%clk 0:00:03]} 48. Kf3 {[%clk 0:00:08]}  Ke7 {[%clk 0:00:04]} 49. f5 {[%clk 0:00:08]}  Be1 {[%clk 0:00:04]} 50. Ke3 {[%clk 0:00:06]}  Kd6 {[%clk 0:00:03]} 51. h3 {[%clk 0:00:05]}  Ba5 {[%clk 0:00:03]} 52. Kf4 {[%clk 0:00:05]}  Bd2+ {[%clk 0:00:04]} 53. Kg4 {[%clk 0:00:05]}  Ke5 {[%clk 0:00:04]} 54. Kh5 {[%clk 0:00:05]}  Kd6 {[%clk 0:00:04]} 55. Kg6 {[%clk 0:00:05]}  Ke7 {[%clk 0:00:04]} 56. h4 {[%clk 0:00:05]} 1-0


[Site "https://www.chess.com"]

[Event "Titled Tuesday Blitz June 1 2021"]
[White "Indjic, Aleksandar"]
[Black "Shahade, Gregory"]
[WhiteFideId "911925"]
[BlackFideId "2009064"]
[WhiteElo "2643"]
[BlackElo "2722"]
[Result "1-0"]
[Round "06"]
[TimeControl "180+1"]
[Date "2021.06.01"]
[WhiteClock "0:00:06"]
[BlackClock "0:00:01"]

1. d4 {[%clk 0:03:00]}  Nf6 {[%clk 0:02:59]} 2. Nf3 {[%clk 0:03:01]}  g6 {[%clk 0:02:59]} 3. Bg5 {[%clk 0:03:01]}  Bg7 {[%clk 0:02:59]} 4. Nbd2 {[%clk 0:03:01]}  O-O {[%clk 0:02:58]} 5. c3 {[%clk 0:03:01]}  d6 {[%clk 0:02:57]} 6. e3 {[%clk 0:03:01]}  c5 {[%clk 0:02:57]} 7. Bd3 {[%clk 0:03:01]}  Nc6 {[%clk 0:02:53]} 8. O-O {[%clk 0:02:59]}  h6 {[%clk 0:02:51]} 9. Bxf6 {[%clk 0:02:58]}  exf6 {[%clk 0:02:48]} 10. a3 {[%clk 0:02:51]}  f5 {[%clk 0:02:47]} 11. b4 {[%clk 0:02:38]}  b6 {[%clk 0:02:41]} 12. Nb3 {[%clk 0:02:32]}  Qe7 {[%clk 0:02:40]} 13. Nfd2 {[%clk 0:02:29]}  Bb7 {[%clk 0:02:30]} 14. Be2 {[%clk 0:02:24]}  Rfe8 {[%clk 0:02:24]} 15. Bf3 {[%clk 0:02:23]}  Rac8 {[%clk 0:02:05]} 16. Re1 {[%clk 0:02:15]}  Qc7 {[%clk 0:01:56]} 17. Rc1 {[%clk 0:02:06]}  Nb8 {[%clk 0:01:55]} 18. Bxb7 {[%clk 0:02:04]}  Qxb7 {[%clk 0:01:55]} 19. c4 {[%clk 0:02:04]}  Nd7 {[%clk 0:01:54]} 20. Qf3 {[%clk 0:01:59]}  Qxf3 {[%clk 0:01:49]} 21. Nxf3 {[%clk 0:02:00]}  Nf6 {[%clk 0:01:50]} 22. Red1 {[%clk 0:01:57]}  Ne4 {[%clk 0:01:46]} 23. Nfd2 {[%clk 0:01:57]}  Nf6 {[%clk 0:01:40]} 24. Kf1 {[%clk 0:01:55]}  h5 {[%clk 0:01:40]} 25. h3 {[%clk 0:01:55]}  Rc7 {[%clk 0:01:29]} 26. Ke2 {[%clk 0:01:50]}  f4 {[%clk 0:01:28]} 27. e4 {[%clk 0:01:37]}  Nxe4 {[%clk 0:01:25]} 28. Nxe4 {[%clk 0:01:37]}  Rxe4+ {[%clk 0:01:26]} 29. Kf3 {[%clk 0:01:37]}  f5 {[%clk 0:01:13]} 30. dxc5 {[%clk 0:01:33]}  dxc5 {[%clk 0:01:13]} 31. bxc5 {[%clk 0:01:33]}  bxc5 {[%clk 0:01:12]} 32. Rd5 {[%clk 0:01:33]}  Bf8 {[%clk 0:01:00]} 33. Nd2 {[%clk 0:01:20]}  Rd4 {[%clk 0:00:53]} 34. a4 {[%clk 0:00:54]}  Rxd5 {[%clk 0:00:48]} 35. cxd5 {[%clk 0:00:55]}  Rd7 {[%clk 0:00:48]} 36. Nc4 {[%clk 0:00:55]}  Rxd5 {[%clk 0:00:48]} 37. h4 {[%clk 0:00:55]}  Rd4 {[%clk 0:00:47]} 38. Ke2 {[%clk 0:00:53]}  Be7 {[%clk 0:00:46]} 39. a5 {[%clk 0:00:51]}  Bxh4 {[%clk 0:00:42]} 40. Nd2 {[%clk 0:00:51]}  Be7 {[%clk 0:00:36]} 41. Nf3 {[%clk 0:00:48]}  Ra4 {[%clk 0:00:34]} 42. Rd1 {[%clk 0:00:48]}  Rxa5 {[%clk 0:00:33]} 43. Rd7 {[%clk 0:00:47]}  Kf7 {[%clk 0:00:31]} 44. Rc7 {[%clk 0:00:47]}  Ke6 {[%clk 0:00:31]} 45. Kd3 {[%clk 0:00:47]}  Bd6 {[%clk 0:00:30]} 46. Rg7 {[%clk 0:00:46]}  Kd5 {[%clk 0:00:30]} 47. Rxg6 {[%clk 0:00:44]}  Ra2 {[%clk 0:00:31]} 48. Nd2 {[%clk 0:00:42]}  Ra3+ {[%clk 0:00:26]} 49. Kc2 {[%clk 0:00:42]}  Be5 {[%clk 0:00:25]} 50. Rg5 {[%clk 0:00:37]}  c4 {[%clk 0:00:24]} 51. Rxf5 {[%clk 0:00:36]}  Ra2+ {[%clk 0:00:24]} 52. Kc1 {[%clk 0:00:32]}  Ke6 {[%clk 0:00:22]} 53. Rxh5 {[%clk 0:00:30]}  c3 {[%clk 0:00:23]} 54. Ne4 {[%clk 0:00:21]}  Re2 {[%clk 0:00:17]} 55. Nc5+ {[%clk 0:00:16]}  Kd6 {[%clk 0:00:15]} 56. Nd3 {[%clk 0:00:16]}  Bd4 {[%clk 0:00:11]} 57. Nxf4 {[%clk 0:00:15]}  Re1+ {[%clk 0:00:06]} 58. Kc2 {[%clk 0:00:15]}  Bxf2 {[%clk 0:00:07]} 59. Nd3 {[%clk 0:00:14]}  Re2+ {[%clk 0:00:07]} 60. Kxc3 {[%clk 0:00:15]}  Bb6 {[%clk 0:00:07]} 61. g4 {[%clk 0:00:15]}  Rg2 {[%clk 0:00:06]} 62. Rg5 {[%clk 0:00:15]}  Kc6 {[%clk 0:00:06]} 63. Rg6+ {[%clk 0:00:15]}  Kb5 {[%clk 0:00:06]} 64. Nf4 {[%clk 0:00:14]}  Rg3+ {[%clk 0:00:06]} 65. Kc2 {[%clk 0:00:15]}  a5 {[%clk 0:00:06]} 66. Nd5 {[%clk 0:00:14]}  Bd4 {[%clk 0:00:06]} 67. Nc7+ {[%clk 0:00:12]}  Kc4 {[%clk 0:00:06]} 68. Rc6+ {[%clk 0:00:12]}  Kb4 {[%clk 0:00:04]} 69. Rg6 {[%clk 0:00:09]}  a4 {[%clk 0:00:04]} 70. Ne6 {[%clk 0:00:07]}  Be5 {[%clk 0:00:03]} 71. Rg5 {[%clk 0:00:08]}  Bc3 {[%clk 0:00:03]} 72. Nf4 {[%clk 0:00:07]}  Bd4 {[%clk 0:00:01]} 73. Ne2 {[%clk 0:00:06]} 1-0


[Site "https://www.chess.com"]